bitfinex/quotes_BTCUSD_20230120
["timestamp","ask_amount","ask_price","bid_price","bid_amount"]
[1674220972296,0.05119018,21108.0,21107.0,1.14363675]
[1674220972547,0.05119018,21108.0,21107.0,1.44363675]
[1674220972798,0.00819018,21108.0,21107.0,0.99063675]
[1674220973051,0.05119018,21108.0,21107.0,0.99363675]
[1674220973294,0.05119018,21108.0,21107.0,1.14363675]
[1674220973565,0.05119018,21108.0,21107.0,1.29363675]
[1674220973797,0.05119018,21108.0,21107.0,0.99363675]
[1674220974554,0.05119018,21108.0,21107.0,1.44363675]
[1674220974807,0.05119018,21108.0,21107.0,1.29363675]
[1674220975326,0.05119018,21108.0,21107.0,0.51986075]
[1674220978312,0.05119018,21108.0,21107.0,0.04608475]
[1674220978562,0.05119018,21108.0,21107.0,0.039]
[1674220993736,0.51808558,21108.0,21107.0,0.039]
[1674220993998,0.82168258,21108.0,21107.0,0.039]
[1674220994254,1.00035983,21108.0,21107.0,0.039]
[1674220994515,0.97168258,21108.0,21107.0,0.039]
[1674220995868,0.82168258,21108.0,21107.0,0.039]
[1674220996407,0.84736458,21108.0,21107.0,0.039]
[1674220999326,1.07056458,21108.0,21107.0,0.039]
[1674220999570,1.69431858,21108.0,21107.0,0.039]
[1674220999839,2.07154904,21108.0,21107.0,0.039]
[1674221000679,2.07154904,21108.0,21107.0,0.03892638]
[1674221000680,2.1901552,21108.0,21107.0,0.03892638]
[1674221000931,1.77047718,21108.0,21107.0,0.03592638]
[1674221001193,1.85847718,21108.0,21107.0,0.03592638]
[1674221001727,2.25107073,21108.0,21107.0,0.03592638]
[1674221002565,2.16307073,21108.0,21107.0,0.03592638]
[1674221002832,2.10107073,21108.0,21107.0,0.03592638]
[1674221003909,1.98937073,21108.0,21107.0,0.03592638]
[1674221005437,1.89935565,21108.0,21107.0,0.03592638]
[1674221005709,2.25482659,21108.0,21107.0,0.03592638]
[1674221006221,1.95224812,21108.0,21107.0,0.03592638]
[1674221007801,1.47849412,21108.0,21107.0,0.03592638]
[1674221010368,1.95224812,21108.0,21107.0,0.03592638]
[1674221011940,0.52240463,21107.0,21102.0,0.74303215]
[1674221012176,0.51768197,21106.0,21102.0,1.21692015]
[1674221012522,0.19462097,21106.0,21102.0,1.10392018]
[1674221012708,0.19462097,21106.0,21102.0,0.95392018]
[1674221012970,0.44123275,21105.0,21102.0,0.95392018]
[1674221013795,0.44123275,21105.0,21102.0,0.48004818]
[1674221014059,0.44123275,21105.0,21102.0,0.95393618]
[1674221014325,0.01285023,21104.0,21102.0,0.48004818]
[1674221015165,0.01285023,21104.0,21103.0,0.00784915]
[1674221015974,0.04385023,21104.0,21103.0,0.00784915]
[1674221016240,0.01285023,21104.0,21103.0,0.00784915]
[1674221016499,0.09985023,21104.0,21103.0,0.00784915]
[1674221022847,0.09985023,21104.0,21103.0,0.48171515]
[1674221023162,0.09985023,21104.0,21103.0,0.63171515]
[1674221023418,0.09985023,21104.0,21103.0,0.15784915]
[1674221023678,0.09985023,21104.0,21103.0,0.37691857]
[1674221023968,0.09985023,21104.0,21103.0,0.52691857]
[1674221024226,0.09985023,21104.0,21103.0,1.41308457]
[1674221024526,0.09985023,21104.0,21103.0,1.52608454]
[1674221024788,0.09985023,21104.0,21103.0,1.07608454]
[1674221025062,0.09985023,21104.0,21103.0,0.48921857]
[1674221026950,0.09985023,21104.0,21103.0,0.96308457]
[1674221027254,0.09985023,21104.0,21103.0,0.48921857]
[1674221027518,0.09985023,21104.0,21103.0,1.060032]
[1674221028638,0.09985023,21104.0,21103.0,0.586166]
[1674221028891,0.09985023,21104.0,21103.0,0.736166]
[1674221029426,0.09985023,21104.0,21103.0,0.586166]
[1674221029942,0.09985023,21104.0,21103.0,1.036166]
[1674221030209,0.09985023,21104.0,21103.0,0.84916597]
[1674221030470,0.09985023,21104.0,21103.0,0.736166]
[1674221030740,0.09985023,21104.0,21103.0,0.586166]
[1674221032084,0.09985023,21104.0,21103.0,0.736166]
[1674221032346,0.09985023,21104.0,21103.0,1.14916597]
[1674221032624,0.09985023,21104.0,21103.0,0.586166]
[1674221034185,0.09985023,21104.0,21103.0,0.623866]
[1674221034188,0.09985023,21104.0,21103.0,0.473866]
[1674221036316,0.09985023,21104.0,21103.0,0.58686597]
[1674221036605,0.09985023,21104.0,21103.0,0.73686597]
[1674221036868,0.09985023,21104.0,21103.0,0.58686597]
[1674221037135,0.09985023,21104.0,21103.0,0.473866]
[1674221037414,0.09985023,21104.0,21103.0,0.58686597]
[1674221037675,0.09985023,21104.0,21103.0,0.473866]
[1674221037971,0.09985023,21104.0,21102.0,0.22509997]
[1674221038229,0.09985023,21104.0,21102.0,0.11299997]
[1674221038753,0.01285023,21104.0,21102.0,0.11299997]
[1674221039013,0.04385023,21104.0,21102.0,0.58688597]
[1674221039580,0.50315519,21104.0,21102.0,0.58688597]
[1674221039836,0.50315519,21104.0,21102.0,0.473886]
[1674221040362,0.50315519,21104.0,21102.0,0.58688597]
[1674221040621,0.50315519,21104.0,21102.0,0.473886]
[1674221040898,0.50315519,21104.0,21102.0,0.58688597]
[1674221042014,0.38719094,21103.0,21101.0,0.86806674]
[1674221042271,0.38719094,21103.0,21101.0,0.69858997]
[1674221043076,0.38719094,21103.0,21101.0,0.86806674]
[1674221043353,0.46951191,21103.0,21101.0,0.22469997]
[1674221043625,0.332177,21102.0,21101.0,0.003]
[1674221044229,0.482177,21102.0,21101.0,0.003]
[1674221044492,0.956065,21102.0,21098.0,0.23376485]
[1674221044816,0.71220897,21102.0,21101.0,0.003]
[1674221045077,0.952097,21102.0,21101.0,0.003]
[1674221045355,0.952097,21102.0,21098.0,0.12076488]
[1674221045614,0.460871,21101.0,21098.0,0.12076488]
[1674221045879,0.15,21101.0,21098.0,0.12076488]
[1674221046141,0.23232097,21101.0,21098.0,0.12076488]
[1674221046401,0.623918,21101.0,21098.0,0.12376488]
[1674221046660,0.316275,21100.0,21098.0,0.01236488]
[1674221046920,0.32539,21099.0,21098.0,0.01236488]
[1674221047187,0.766318,21101.0,21098.0,0.00936488]
[1674221047446,0.473935,21100.0,21098.0,0.00936488]
[1674221047992,0.36853164,21099.0,21098.0,0.00936488]
[1674221048242,0.031,21100.0,21098.0,0.00936488]
[1674221048528,0.43273141,21099.0,21098.0,0.00936488]
[1674221048767,0.031,21100.0,21098.0,0.00936488]
[1674221049311,1.08599163,21101.0,21098.0,0.00936488]
[1674221049565,0.031,21099.0,21098.0,0.00936488]
[1674221049896,1.08599163,21101.0,21098.0,0.00936488]
[1674221050085,0.031,21100.0,21098.0,0.00936488]
[1674221051098,0.61207363,21101.0,21098.0,0.00936488]
[1674221051359,0.46207363,21101.0,21098.0,0.00936488]
[1674221051921,0.40670843,21099.0,21098.0,0.00936488]
[1674221052171,0.9259544,21099.0,21098.0,0.00936488]
[1674221052483,1.172781,21099.0,21098.0,0.00936488]
[1674221052727,2.04484986,21099.0,21098.0,0.00936488]
[1674221052984,1.675737,21099.0,21098.0,0.00936488]
[1674221053268,1.646737,21099.0,21098.0,0.00936488]
[1674221053551,1.99854696,21099.0,21098.0,0.00936488]
[1674221053818,1.98663351,21099.0,21098.0,0.00936488]
[1674221054082,2.07763351,21099.0,21098.0,0.00936488]
[1674221054350,1.646737,21099.0,21098.0,0.00936488]
[1674221054628,1.737737,21099.0,21098.0,0.00936488]
[1674221054882,2.00184696,21099.0,21098.0,0.00936488]
[1674221055193,1.737737,21099.0,21098.0,0.00936488]
[1674221055430,1.646737,21099.0,21098.0,0.00936488]
[1674221055695,1.737737,21099.0,21098.0,0.00936488]
[1674221055972,2.13882101,21099.0,21098.0,0.00936488]
[1674221056233,1.737737,21099.0,21098.0,0.00936488]
[1674221056531,1.737737,21099.0,21092.0,0.70396107]
[1674221056800,0.1123,21097.0,21093.0,0.15]
[1674221057069,0.323663,21096.0,21093.0,0.15]
[1674221057359,0.08232097,21096.0,21093.0,0.15]
[1674221058075,0.586302,21097.0,21093.0,0.15]
[1674221058597,0.66862297,21097.0,21093.0,0.15]
[1674221058872,0.1123,21097.0,21094.0,0.474068]
[1674221059146,0.676302,21097.0,21093.0,0.81840297]
[1674221059392,0.676302,21097.0,21093.0,0.624082]
[1674221059659,0.28462097,21097.0,21093.0,1.098172]
[1674221059921,0.1123,21097.0,21093.0,1.098172]
[1674221060202,0.2033,21097.0,21093.0,0.81841097]
[1674221060515,0.45206473,21098.0,21094.0,0.3]
[1674221060782,0.09,21097.0,21096.0,0.15]
[1674221061322,0.09,21097.0,21096.0,0.186]
[1674221061588,0.45206473,21098.0,21096.0,1.434046]
[1674221061851,0.54306473,21098.0,21096.0,1.134046]
[1674221062120,0.45206473,21098.0,21096.0,1.374046]
[1674221062942,0.54306473,21098.0,21096.0,1.374046]
[1674221063490,0.4690576,21097.0,21096.0,0.276]
[1674221063749,0.4690576,21097.0,21096.0,0.750018]
[1674221064288,0.4690576,21097.0,21096.0,1.224041]
[1674221065102,0.5600576,21097.0,21096.0,1.224041]
[1674221067817,0.091,21097.0,21096.0,1.224041]
[1674221068859,0.091,21097.0,21096.0,0.750018]
[1674221070709,0.091,21097.0,21096.0,0.276]
[1674221070966,0.4567264,21097.0,21096.0,0.276]
[1674221075762,0.091,21097.0,21096.0,0.276]
[1674221076869,0.09093321,21097.0,21096.0,0.276]
[1674221078524,0.09093321,21097.0,21096.0,1.224046]
[1674221078768,0.09093321,21097.0,21096.0,1.050023]
[1674221079017,0.09093321,21097.0,21096.0,0.750023]
[1674221079419,0.09093321,21097.0,21096.0,1.050023]
[1674221079423,0.09093321,21097.0,21096.0,0.750023]
[1674221079645,0.09093321,21097.0,21096.0,0.276]
[1674221081341,0.09093321,21097.0,21096.0,0.750023]
[1674221084728,0.09093321,21097.0,21096.0,0.276]
[1674221085780,0.53973968,21097.0,21096.0,0.276]
[1674221086334,1.00038868,21097.0,21096.0,0.276]
[1674221087362,1.47438968,21097.0,21096.0,0.276]
[1674221090742,1.94839068,21097.0,21096.0,0.276]
[1674221091045,1.49958421,21097.0,21096.0,0.276]
[1674221091263,1.92261983,21097.0,21096.0,0.276]
[1674221091503,1.790163,21097.0,21096.0,0.276]
[1674221091764,1.866463,21097.0,21096.0,0.276]
[1674221092541,1.99639065,21097.0,21096.0,0.276]
[1674221093570,1.57588421,21097.0,21096.0,0.00067885]
[1674221098725,1.57588421,21097.0,21091.0,0.01138997]
[1674221098981,0.55129097,21096.0,21091.0,0.01138997]
[1674221099233,1.35753997,21095.0,21091.0,0.01138997]
[1674221099502,0.15,21094.0,21091.0,0.01138997]
[1674221099770,0.70639197,21094.0,21091.0,0.01138997]
[1674221100028,0.624071,21094.0,21091.0,0.01138997]
[1674221100318,0.474071,21094.0,21091.0,0.01138997]
[1674221100555,0.41638978,21093.0,21091.0,0.01138997]
[1674221101918,0.42338978,21093.0,21091.0,0.01138997]
[1674221104316,0.01890217,21092.0,21091.0,0.01138997]
[1674221104845,0.53032412,21092.0,21091.0,0.01138997]
[1674221105383,0.53732412,21092.0,21091.0,0.01138997]
[1674221105670,0.02590217,21092.0,21091.0,0.01138997]
[1674221107002,0.35060317,21092.0,21091.0,0.01138997]
[1674221107270,0.02590217,21092.0,21091.0,0.01138997]
[1674221107781,0.34308317,21092.0,21091.0,0.01138997]
[1674221108074,0.33180717,21092.0,21091.0,0.01138997]
[1674221108347,0.02590217,21092.0,21091.0,0.24138997]
[1674221109325,0.42257818,21092.0,21091.0,0.24138997]
[1674221110129,0.74194718,21092.0,21091.0,0.24138997]
[1674221113659,0.89194718,21092.0,21091.0,0.24138997]
[1674221114735,0.74194718,21092.0,21091.0,0.24138997]
[1674221115000,0.42257818,21092.0,21091.0,0.24138997]
[1674221115266,0.89338718,21092.0,21091.0,0.24138997]
[1674221117425,1.64931373,21092.0,21091.0,0.24138997]
[1674221117636,2.06494287,21092.0,21091.0,0.24138997]
[1674221117909,1.51433717,21092.0,21091.0,0.24138997]
[1674221118167,1.8781635,21092.0,21091.0,0.24138997]
[1674221118456,1.8781635,21092.0,21091.0,0.2413144]
[1674221118943,1.54333717,21092.0,21091.0,0.2413144]
[1674221119167,1.51433717,21092.0,21091.0,0.2413144]
[1674221119420,1.60533717,21092.0,21091.0,0.2413144]
[1674221119677,1.97120936,21092.0,21091.0,0.2413144]
[1674221119945,2.06220936,21092.0,21091.0,0.2413144]
[1674221120199,1.60533717,21092.0,21091.0,0.2413144]
[1674221120731,1.93736524,21092.0,21091.0,0.2413144]
[1674221121001,1.84636524,21092.0,21091.0,0.2413144]
[1674221122058,1.93736524,21092.0,21091.0,0.2413144]
[1674221123992,1.60533717,21092.0,21091.0,0.2413144]
[1674221124164,1.89828869,21092.0,21091.0,0.2413144]
[1674221124939,1.99201657,21092.0,21091.0,0.2413144]
[1674221125256,1.76561657,21092.0,21091.0,0.2413144]
[1674221127393,0.81739057,21092.0,21091.0,0.2413144]
[1674221129248,1.76561657,21092.0,21091.0,0.2413144]
[1674221129532,1.29150357,21092.0,21091.0,0.2413144]
[1674221129793,0.81739057,21092.0,21091.0,0.2413144]
[1674221130784,0.49658157,21092.0,21091.0,0.2413144]
[1674221132083,0.81517257,21092.0,21091.0,0.2413144]
[1674221132912,0.49658157,21092.0,21091.0,0.2413144]
[1674221133213,0.82673557,21092.0,21091.0,0.2413144]
[1674221133722,1.30074114,21092.0,21091.0,0.2413144]
[1674221133723,0.82662814,21092.0,21091.0,0.2413144]
[1674221134242,0.79635014,21092.0,21091.0,0.2413144]
[1674221139555,0.40967074,21092.0,21091.0,0.2413144]
[1674221139840,0.10979474,21092.0,21091.0,0.2413144]
[1674221140623,0.57872261,21092.0,21091.0,0.2413144]
[1674221140889,1.04026061,21092.0,21091.0,0.2413144]
[1674221141449,0.89026061,21092.0,21091.0,0.2413144]
[1674221141707,0.87502249,21092.0,21091.0,0.2413144]
[1674221144587,0.09455662,21092.0,21091.0,0.2413144]
[1674221149607,0.53379853,21092.0,21091.0,0.2413144]
[1674221149861,0.84598953,21092.0,21091.0,0.2413144]
[1674221153955,0.99598953,21092.0,21091.0,0.2413144]
[1674221154251,0.84598953,21092.0,21091.0,0.2413144]
[1674221158395,0.99598953,21092.0,21091.0,0.2413144]
[1674221159143,1.47010253,21092.0,21091.0,0.2413144]
[1674221159925,1.94421553,21092.0,21091.0,0.2413144]
[1674221161544,1.47010253,21092.0,21091.0,0.2413144]
[1674221163406,0.88086062,21092.0,21091.0,0.2413144]
[1674221163629,0.50168593,21092.0,21091.0,0.2413144]
[1674221163903,0.97693993,21092.0,21091.0,0.2413144]
[1674221164152,0.97723693,21092.0,21091.0,0.2413144]
[1674221164412,0.97368031,21092.0,21091.0,0.2413144]
[1674221164706,1.44779331,21092.0,21091.0,0.2413144]
[1674221168767,1.92190631,21092.0,21091.0,0.2413144]
[1674221169313,1.590877,21092.0,21091.0,0.24123977]
[1674221169568,1.92376149,21092.0,21091.0,0.24123977]
[1674221169837,1.70398463,21092.0,21091.0,0.24123977]
[1674221170570,1.71248463,21092.0,21091.0,0.24123977]
[1674221171106,3.17174725,21092.0,21091.0,0.24123977]
[1674221171893,2.71828165,21092.0,21091.0,0.24123977]
[1674221172154,2.25358575,21092.0,21091.0,0.24123977]
[1674221172409,1.88350993,21092.0,21091.0,0.24123977]
[1674221172927,2.83195803,21092.0,21091.0,0.24123977]
[1674221173196,2.71830649,21092.0,21091.0,0.24123977]
[1674221173459,3.15846684,21092.0,21091.0,0.24123977]
[1674221173738,3.91161287,21092.0,21091.0,0.24123977]
[1674221174073,3.68906826,21092.0,21091.0,0.24123977]
[1674221174314,3.02196814,21092.0,21091.0,0.24123977]
[1674221175056,3.32196814,21092.0,21091.0,0.24123977]
[1674221175551,4.02611416,21092.0,21091.0,0.24123977]
[1674221175839,3.79911577,21092.0,21091.0,0.24123977]
[1674221176370,3.79882137,21092.0,21091.0,0.24123977]
[1674221176843,4.28142356,21092.0,21091.0,0.24123977]
[1674221177629,4.50853097,21092.0,21091.0,0.24123977]
[1674221177884,4.50833608,21092.0,21091.0,0.24123977]
[1674221178639,4.11116053,21092.0,21091.0,0.24123977]
[1674221179121,4.50833094,21092.0,21091.0,0.24123977]
[1674221179632,4.11116053,21092.0,21091.0,0.24123977]
[1674221180155,4.28143851,21092.0,21091.0,0.24123977]
[1674221180448,4.50829959,21092.0,21091.0,0.24123977]
[1674221180727,4.03476053,21092.0,21091.0,0.24123977]
[1674221180988,4.20503232,21092.0,21091.0,0.24123977]
[1674221181250,3.42243013,21092.0,21091.0,0.24123977]
[1674221181511,2.36036152,21092.0,21091.0,0.24123977]
[1674221181839,2.43644387,21092.0,21091.0,0.24123977]
[1674221185456,2.00047869,21092.0,21091.0,0.24123977]
[1674221185771,2.58426152,21092.0,21091.0,0.24123977]
[1674221185983,2.87966046,21092.0,21091.0,0.24123977]
[1674221186244,2.96198143,21092.0,21091.0,0.24123977]
[1674221186509,4.01780142,21092.0,21091.0,0.24123977]
[1674221186734,4.24480467,21092.0,21091.0,0.24123977]
[1674221187055,4.24480529,21092.0,21091.0,0.24123977]
[1674221187517,4.01780142,21092.0,21091.0,0.24123977]
[1674221187743,4.2447599,21092.0,21091.0,0.24123977]
[1674221188003,2.81345822,21092.0,21091.0,0.24123977]
[1674221188273,2.37977331,21092.0,21091.0,0.24123977]
[1674221188794,1.92657869,21092.0,21091.0,0.24123977]
[1674221189813,2.30697179,21092.0,21091.0,0.24123977]
[1674221190077,1.4281191,21092.0,21091.0,0.24123977]
[1674221190651,0.9455061,21092.0,21091.0,0.24123977]
[1674221192842,1.4196191,21092.0,21091.0,0.24123977]
[1674221193393,0.9455061,21092.0,21091.0,0.24123977]
[1674221193992,1.4196191,21092.0,21091.0,0.24123977]
[1674221194494,1.357116,21092.0,21091.0,0.24123977]
[1674221194735,1.72721458,21092.0,21091.0,0.24115544]
[1674221195018,1.47908743,21092.0,21091.0,0.24115544]
[1674221195785,1.64930091,21092.0,21091.0,0.24115544]
[1674221196377,1.47908743,21092.0,21091.0,0.24115544]
[1674221196636,1.94930091,21092.0,21091.0,0.24115544]
[1674221196892,1.83582948,21092.0,21091.0,0.24115544]
[1674221197153,2.28636707,21092.0,21091.0,0.24115544]
[1674221197421,3.90120438,21092.0,21091.0,0.24115544]
[1674221197872,4.12700486,21092.0,21091.0,0.24115544]
[1674221198673,4.12710506,21092.0,21091.0,0.24115544]
[1674221199455,3.90004638,21092.0,21091.0,0.24115544]
[1674221199709,4.12709229,21092.0,21091.0,0.24115544]
[1674221200250,3.90004638,21092.0,21091.0,0.24115544]
[1674221200513,3.61724665,21092.0,21091.0,0.21514709]
[1674221201052,4.03393863,21092.0,21091.0,0.21514709]
[1674221201292,3.69364665,21092.0,21091.0,0.21514709]
[1674221202151,4.03393863,21092.0,21091.0,0.21514709]
[1674221202405,4.08211361,21092.0,21089.0,0.01228481]
[1674221202666,0.35991388,21090.0,21089.0,0.01228481]
[1674221203142,4.10868366,21090.0,21089.0,0.01228481]
[1674221203935,3.90126978,21090.0,21089.0,0.01228481]
[1674221204194,3.99226978,21090.0,21089.0,0.01228481]
[1674221204450,4.47487197,21090.0,21089.0,0.01228481]
[1674221205234,4.63413197,21090.0,21089.0,0.01228481]
[1674221205640,0.15,21089.0,21087.0,0.012867]
[1674221205869,3.89723044,21088.0,21087.0,0.012867]
[1674221206106,0.2264,21087.0,21086.0,0.01326702]
[1674221206321,2.64869554,21087.0,21086.0,0.01326702]
[1674221206561,3.54074406,21087.0,21086.0,0.01326702]
[1674221206798,3.71087298,21087.0,21086.0,0.01326702]
[1674221207034,2.64868593,21087.0,21086.0,0.01326702]
[1674221207469,0.15,21086.0,21084.0,0.00506221]
[1674221207720,2.24307469,21085.0,21084.0,0.00506221]
[1674221208923,2.11451062,21085.0,21084.0,0.00506221]
[1674221209161,2.1059609,21085.0,21084.0,0.00506221]
[1674221210347,1.856873,21085.0,21084.0,0.00506221]
[1674221210567,2.1199828,21085.0,21084.0,0.00506221]
[1674221210825,1.856873,21085.0,21084.0,0.00506221]
[1674221211282,2.27493639,21085.0,21084.0,0.00506221]
[1674221211511,1.856933,21085.0,21084.0,0.00506221]
[1674221212399,0.15,21084.0,21083.0,0.00857012]
[1674221212629,1.413592,21084.0,21083.0,0.00857012]
[1674221213447,1.504592,21084.0,21083.0,0.00857012]
[1674221213970,1.93466649,21084.0,21083.0,0.00857012]
[1674221214495,1.504652,21084.0,21083.0,0.00857012]
[1674221215312,1.68985103,21084.0,21083.0,0.00857012]
[1674221216369,1.354652,21084.0,21083.0,0.00857012]
[1674221216642,1.7282822,21084.0,21083.0,0.00357012]
[1674221217481,1.7282222,21084.0,21083.0,0.00357012]
[1674221219307,1.4132162,21084.0,21083.0,0.00357012]
[1674221219593,1.7367282,21084.0,21083.0,0.00357012]
[1674221219855,1.4132162,21084.0,21083.0,0.00357012]
[1674221220111,1.7303272,21084.0,21083.0,0.00357012]
[1674221220379,1.4132162,21084.0,21083.0,0.00357012]
[1674221220631,1.7363212,21084.0,21083.0,0.00357012]
[1674221220893,1.720947,21084.0,21083.0,0.00357012]
[1674221221464,1.87602863,21084.0,21083.0,0.00357012]
[1674221222837,1.720947,21084.0,21083.0,0.00357012]
[1674221223925,0.091,21084.0,21083.0,0.26832109]
[1674221224217,0.091,21084.0,21083.0,0.89543609]
[1674221224641,6e-05,21085.0,21084.0,0.15]
[1674221224882,6e-05,21085.0,21084.0,1.57080229]
[1674221225339,6e-05,21085.0,21084.0,1.27080229]
[1674221225576,0.00906,21085.0,21084.0,1.57080229]
[1674221225802,6e-05,21085.0,21084.0,1.57080229]
[1674221226024,6e-05,21085.0,21084.0,1.12080229]
[1674221226025,0.01006,21085.0,21084.0,1.12080229]
[1674221226509,0.01006,21085.0,21084.0,1.19720229]
[1674221227870,0.01006,21085.0,21084.0,0.24861629]
[1674221230257,0.46405746,21085.0,21084.0,0.24861629]
[1674221231570,0.78121446,21085.0,21084.0,0.17221629]
[1674221231849,1.25548446,21085.0,21084.0,0.17221629]
[1674221232090,1.43980515,21085.0,21084.0,0.17221629]
[1674221232917,1.42980515,21085.0,21084.0,0.17221629]
[1674221233165,1.274257,21085.0,21084.0,0.17921629]
[1674221233411,1.424257,21085.0,21084.0,0.17921629]
[1674221235255,1.424257,21085.0,21079.0,0.39139905]
[1674221235256,0.15,21084.0,21079.0,0.39139905]
[1674221235545,1.83474106,21083.0,21079.0,0.06629905]
[1674221235784,0.40872997,21082.0,21079.0,0.06629905]
[1674221235995,0.55666497,21082.0,21079.0,0.06629905]
[1674221236548,0.94270609,21083.0,21079.0,0.06629905]
[1674221236827,1.41803809,21083.0,21079.0,0.15229905]
[1674221237062,1.41703809,21083.0,21079.0,0.06629905]
[1674221237326,0.001,21082.0,21079.0,0.15229905]
[1674221237586,1.282561,21081.0,21079.0,0.15229905]
[1674221237850,0.94872,21081.0,21079.0,0.15229905]
[1674221238100,0.4123218,21080.0,21079.0,0.06629905]
[1674221238380,0.4123218,21080.0,21079.0,0.15229905]
[1674221238626,0.8867048,21080.0,21079.0,0.06629905]
[1674221238926,0.8867048,21080.0,21079.0,0.15229905]
[1674221239191,0.8867048,21080.0,21079.0,0.06629905]
[1674221239475,0.8877048,21080.0,21079.0,0.086]
[1674221240023,0.949766,21080.0,21079.0,0.086]
[1674221240282,1.70363966,21080.0,21079.0,0.086]
[1674221241365,1.37898566,21080.0,21079.0,0.086]
[1674221241626,1.69088066,21080.0,21079.0,0.086]
[1674221241895,1.68970066,21080.0,21079.0,0.086]
[1674221242340,1.68970066,21080.0,21079.0,0.1986]
[1674221242605,1.70364866,21080.0,21079.0,0.1986]
[1674221242868,1.70364866,21080.0,21079.0,0.086]
[1674221243130,1.73992875,21080.0,21079.0,0.086]
[1674221243391,1.62185874,21080.0,21079.0,0.086]
[1674221243672,1.432929,21080.0,21079.0,0.086]
[1674221243932,1.6236599,21080.0,21079.0,0.086]
[1674221244211,1.6236599,21080.0,21076.0,0.1126]
[1674221244212,1.6226599,21080.0,21076.0,0.1126]
[1674221244473,0.48720085,21079.0,21076.0,0.1126]
[1674221244784,0.795933,21078.0,21076.0,0.1126]
[1674221245089,0.325488,21077.0,21076.0,0.1126]
[1674221245359,0.948856,21078.0,21076.0,0.1126]
[1674221245627,1.409311,21077.0,21076.0,0.006]
[1674221245898,0.784861,21077.0,21075.0,0.12855428]
[1674221246156,0.35882472,21078.0,21076.0,0.07643]
[1674221246702,0.967866,21078.0,21077.0,0.1126]
[1674221246962,0.948866,21078.0,21077.0,0.1126]
[1674221247213,0.474438,21078.0,21077.0,0.1126]
[1674221247482,0.624438,21078.0,21077.0,0.1126]
[1674221247767,0.637498,21078.0,21077.0,0.1196]
[1674221248300,1.05143553,21078.0,21077.0,0.1196]
[1674221248620,0.637498,21078.0,21077.0,0.1196]
[1674221248870,0.98189169,21078.0,21077.0,0.1196]
[1674221249693,0.83189169,21078.0,21077.0,0.1196]
[1674221250275,0.35745369,21078.0,21077.0,0.1196]
[1674221250810,0.01306,21078.0,21077.0,0.1196]
[1674221251376,0.01306,21078.0,21077.0,0.2322]
[1674221252975,0.013,21078.0,21077.0,0.2322]
[1674221253503,0.36134546,21078.0,21077.0,0.2322]
[1674221254076,0.36134546,21078.0,21077.0,0.1196]
[1674221255803,0.013,21078.0,21077.0,0.1196]
[1674221258233,0.47418814,21078.0,21077.0,0.1196]
[1674221259596,0.47418814,21078.0,21077.0,0.0829]
[1674221260375,0.16527097,21078.0,21077.0,0.007]
[1674221260670,1.31137427,21078.0,21077.0,0.007]
[1674221260959,1.78580227,21078.0,21077.0,0.007]
[1674221261772,2.0408485,21078.0,21077.0,0.007]
[1674221262249,1.36657,21078.0,21077.0,0.007]
[1674221262514,1.82238969,21078.0,21077.0,0.007]
[1674221263822,1.77531526,21078.0,21077.0,0.007]
[1674221264082,1.345188,21078.0,21077.0,0.007]
[1674221264346,1.6036154,21078.0,21077.0,0.007]
[1674221264619,1.345188,21078.0,21077.0,0.007]
[1674221266175,1.74092491,21078.0,21077.0,0.007]
[1674221266177,1.345188,21078.0,21077.0,0.007]
[1674221266702,1.82238969,21078.0,21077.0,0.007]
[1674221266959,2.18355626,21078.0,21077.0,0.007]
[1674221267218,2.48355626,21078.0,21077.0,0.007]
[1674221267781,2.55935626,21078.0,21077.0,0.00690993]
[1674221268312,2.54635626,21078.0,21075.0,0.01595428]
[1674221268629,1.47854877,21077.0,21075.0,0.01595428]
[1674221268921,2.24307569,21076.0,21075.0,0.01595428]
[1674221269180,1.299901,21076.0,21075.0,0.01595428]
[1674221269988,1.384901,21076.0,21075.0,0.01695428]
[1674221270256,1.86210269,21076.0,21075.0,0.01695428]
[1674221270521,2.45820246,21076.0,21075.0,0.01695428]
[1674221271053,2.53480246,21076.0,21075.0,0.01695428]
[1674221271625,2.23870269,21076.0,21075.0,0.01195428]
[1674221271879,1.93870269,21076.0,21075.0,0.01195428]
[1674221272136,2.23870269,21076.0,21075.0,0.01195428]
[1674221272933,2.23876269,21076.0,21075.0,0.01195428]
[1674221273182,2.61220846,21076.0,21075.0,0.01195428]
[1674221273444,1.93876269,21076.0,21075.0,0.01195428]
[1674221274703,2.23876269,21076.0,21075.0,0.01195428]
[1674221275268,1.93876269,21076.0,21075.0,0.01195428]
[1674221275499,1.85376269,21076.0,21075.0,0.01095428]
[1674221275755,2.57870846,21076.0,21075.0,0.01095428]
[1674221276037,2.18870846,21076.0,21075.0,0.01095428]
[1674221276299,2.57870846,21076.0,21075.0,0.01095428]
[1674221278092,2.57864846,21076.0,21075.0,0.01095428]
[1674221280134,3.01314846,21076.0,21075.0,0.01095428]
[1674221280633,3.12657178,21076.0,21075.0,0.01095428]
[1674221280890,3.12657178,21076.0,21075.0,0.20527525]
[1674221280891,2.36970269,21076.0,21075.0,0.20527525]
[1674221281162,2.28879964,21076.0,21075.0,0.01095428]
[1674221281446,1.73499795,21076.0,21075.0,0.01095428]
[1674221282278,1.80193974,21076.0,21075.0,0.01095428]
[1674221282546,1.77510015,21076.0,21075.0,0.01095428]
[1674221282805,1.66991651,21076.0,21075.0,0.01095428]
[1674221283070,2.1471182,21076.0,21075.0,0.01095428]
[1674221283347,2.5237182,21076.0,21075.0,0.01095428]
[1674221283879,2.24370269,21076.0,21075.0,0.01095428]
[1674221284133,2.40233399,21076.0,21075.0,0.01095428]
[1674221284706,2.32573399,21076.0,21075.0,0.01095428]
[1674221284968,1.8400323,21076.0,21075.0,0.01095428]
[1674221285229,1.4975773,21076.0,21075.0,0.01095428]
[1674221285497,1.8279233,21076.0,21075.0,0.01095428]
[1674221285793,1.4975773,21076.0,21075.0,0.01095428]
[1674221286057,2.03507943,21076.0,21075.0,0.01095428]
[1674221286830,1.8133383,21076.0,21075.0,0.01095428]
[1674221287196,1.354707,21076.0,21075.0,0.01095428]
[1674221287426,1.047446,21076.0,21075.0,0.01095428]
[1674221287654,0.09,21076.0,21075.0,0.08138428]
[1674221287879,0.09,21076.0,21075.0,0.15798428]
[1674221288371,0.34344879,21077.0,21075.0,0.19398428]
[1674221288563,0.082,21076.0,21075.0,0.19498428]
[1674221288784,0.34344879,21077.0,21075.0,0.19398428]
[1674221288999,0.015,21076.0,21075.0,0.12555428]
[1674221292001,0.015,21076.0,21075.0,0.60004928]